bitfinex-derivatives/quotes_BTCF0:USTF0_20251002
["timestamp","ask_amount","ask_price","bid_price","bid_amount"]
[1759436116261,0.78435562,120730.0,120720.0,0.0827751]
[1759436117961,0.78435562,120730.0,120720.0,0.15709171]
[1759436118855,0.4661315,120730.0,120720.0,0.15709171]
[1759436119057,1.53547562,120730.0,120720.0,0.15709171]
[1759436119267,1.2172515,120730.0,120720.0,0.15709171]
[1759436119451,1.53547562,120730.0,120720.0,0.15709171]
[1759436119963,1.53547562,120730.0,120720.0,0.0827751]
[1759436120460,1.2172515,120730.0,120720.0,0.0827751]
[1759436120761,1.53547562,120730.0,120720.0,0.0827751]
[1759436120961,0.1053384,120720.0,120710.0,0.19168711]
[1759436121159,0.46623108,120720.0,120710.0,0.19168711]
[1759436121364,0.46623108,120720.0,120710.0,0.43559462]
[1759436122261,0.46623108,120720.0,120700.0,0.1173797]
[1759436122262,0.1053452,120710.0,120700.0,0.1173797]
[1759436122465,1.2172252,120710.0,120700.0,0.50992043]
[1759436122656,0.4661452,120710.0,120700.0,0.50992043]
[1759436122854,1.2172252,120710.0,120700.0,0.50992043]
[1759436123563,1.2172252,120710.0,120700.0,0.44366214]
[1759436123763,1.2172252,120710.0,120700.0,0.12543802]
[1759436124063,1.2172252,120710.0,120700.0,0.44366214]
[1759436125562,1.2172252,120710.0,120700.0,0.03459]
[1759436125760,1.2172252,120710.0,120700.0,0.35281412]
[1759436126756,1.2172252,120710.0,120700.0,0.43560622]
[1759436127364,1.2172252,120710.0,120700.0,0.44405676]
[1759436127566,0.4661452,120710.0,120700.0,0.44405676]
[1759436127764,1.2172252,120710.0,120700.0,0.44405676]
[1759436127963,1.2172252,120710.0,120700.0,0.12583264]
[1759436128163,1.2172252,120710.0,120700.0,0.44405676]
[1759436128667,0.38336,120710.0,120700.0,0.44405676]
[1759436128865,0.8564652,120710.0,120700.0,0.44405676]
[1759436130661,0.8564252,120710.0,120700.0,0.44405676]
[1759436130861,1.2172252,120710.0,120700.0,0.44405676]
[1759436132163,1.2172252,120710.0,120700.0,0.1173821]
[1759436132362,1.53544932,120710.0,120700.0,0.1173821]
[1759436133763,1.54712932,120710.0,120700.0,0.0827921]
[1759436135869,0.0827921,120700.0,120690.0,0.1194835]
[1759436136060,1.53437622,120700.0,120690.0,0.1194835]
[1759436136262,1.2161521,120700.0,120690.0,0.1194835]
[1759436136467,0.107499,120690.0,120680.0,6.19e-05]
[1759436136660,1.10482505,120690.0,120680.0,6.19e-05]
[1759436136860,1.50482505,120690.0,120680.0,6.19e-05]
[1759436137272,2.25590505,120690.0,120680.0,6.19e-05]
[1759436137973,1.56960042,120690.0,120680.0,6.19e-05]
[1759436138164,2.32068042,120690.0,120680.0,6.19e-05]
[1759436140671,2.32889997,120690.0,120680.0,6.19e-05]
[1759436142174,1.57781997,120690.0,120680.0,6.19e-05]
[1759436142373,1.92897997,120690.0,120680.0,6.19e-05]
[1759436143373,1.92076042,120690.0,120680.0,6.19e-05]
[1759436145578,1.92892404,120690.0,120680.0,6.19e-05]
[1759436145872,1.9517438,120690.0,120680.0,6.19e-05]
[1759436146676,0.1042927,120670.0,120660.0,0.1186979]
[1759436146875,1.53451682,120670.0,120660.0,0.1186979]
[1759436147677,1.2162927,120670.0,120660.0,0.1186979]
[1759436149176,1.53451682,120670.0,120660.0,0.03588]
[1759436149369,0.1042995,120660.0,120650.0,0.03588]
[1759436149676,0.78332362,120660.0,120650.0,0.1187064]
[1759436149876,0.78332362,120660.0,120650.0,0.03588]
[1759436150376,0.1043064,120650.0,120640.0,0.1187083]
[1759436150572,1.53453052,120650.0,120640.0,0.03588]
[1759436151178,0.1043132,120640.0,120630.0,0.12701122]
[1759436151378,0.4651132,120640.0,120630.0,0.12701122]
[1759436152278,0.78333732,120640.0,120630.0,0.04417592]
[1759436152473,1.53457732,120640.0,120630.0,0.04417592]
[1759436152974,1.2163532,120640.0,120630.0,0.44524014]
[1759436153277,0.4651132,120640.0,120630.0,0.44524014]
[1759436153476,1.2163532,120640.0,120630.0,0.44524014]
[1759436155474,1.2163532,120640.0,120630.0,0.12701602]
[1759436155682,0.78333732,120640.0,120630.0,0.12701602]
[1759436155878,1.53461732,120640.0,120630.0,0.12701602]
[1759436157769,1.2163932,120640.0,120630.0,0.12701602]
[1759436157969,1.53461732,120640.0,120630.0,0.12701602]
[1759436158375,1.2163932,120640.0,120630.0,0.12701602]
[1759436158678,1.2164332,120640.0,120630.0,0.44524014]
[1759436158875,0.7728,120640.0,120630.0,0.12701602]
[1759436159080,0.8556332,120640.0,120630.0,0.12701602]
[1759436159274,0.8556332,120640.0,120630.0,0.44524014]
[1759436160174,0.8556332,120640.0,120630.0,0.12701602]
[1759436160374,0.8556332,120640.0,120630.0,0.44524014]
[1759436160375,0.02148,120640.0,120630.0,0.44524014]
[1759436160579,0.8556332,120640.0,120630.0,0.44524014]
[1759436160876,0.50844702,120650.0,120630.0,0.44524014]
[1759436161081,0.50844702,120650.0,120640.0,0.43600732]
[1759436161082,0.53020702,120650.0,120640.0,0.43600732]
[1759436161383,1.28152702,120650.0,120640.0,0.1177832]
[1759436161576,0.92072702,120650.0,120640.0,0.1177832]
[1759436161784,1.28152702,120650.0,120640.0,0.43600732]
[1759436163175,1.59975114,120650.0,120640.0,0.03495]
[1759436163380,1.28152702,120650.0,120640.0,0.03495]
[1759436163581,0.1045932,120640.0,120630.0,0.44423394]
[1759436163887,0.4653932,120640.0,120630.0,0.12600982]
[1759436164992,0.78361732,120640.0,120630.0,0.12600982]
[1759436165686,1.2167532,120640.0,120630.0,0.12600982]
[1759436165887,0.38256,120640.0,120630.0,0.44423394]
[1759436166189,1.13392,120640.0,120630.0,0.44423394]
[1759436166887,0.38256,120640.0,120630.0,0.44423394]
[1759436167081,1.13392,120640.0,120630.0,0.44423394]
[1759436167289,1.2167532,120640.0,120630.0,0.44423394]
[1759436167591,1.2167532,120640.0,120630.0,0.12600982]
[1759436167787,1.2167532,120640.0,120630.0,0.44423394]
[1759436167989,0.4653932,120640.0,120630.0,0.44423394]
[1759436168289,1.2167532,120640.0,120630.0,0.44467874]
[1759436168489,1.13392,120640.0,120630.0,1.16334766]
[1759436168688,1.2167532,120640.0,120630.0,0.84467874]
[1759436168890,1.53542212,120640.0,120630.0,0.84467874]
[1759436169887,1.53542212,120640.0,120630.0,0.12600982]
[1759436170089,1.53542212,120640.0,120630.0,0.44467874]
[1759436171284,1.53542212,120640.0,120630.0,0.12600982]
[1759436171486,1.53542212,120640.0,120620.0,0.34824476]
[1759436171487,0.1046001,120630.0,120620.0,0.13469734]
[1759436171692,0.78406902,120630.0,120620.0,0.13469734]
[1759436171888,0.104607,120620.0,120610.0,0.11778876]
[1759436172096,1.85417269,120620.0,120610.0,0.43645768]
[1759436172292,1.52203541,120620.0,120610.0,0.43645768]
[1759436172984,0.70129677,120620.0,120610.0,0.43645768]
[1759436173188,0.38262785,120620.0,120610.0,0.43645768]
[1759436173394,1.13398785,120620.0,120610.0,0.43645768]
[1759436173593,0.3608,120650.0,120610.0,1.91750394]
[1759436173896,0.1045864,120650.0,120640.0,0.75511544]
[1759436174196,1.20771842,120650.0,120640.0,0.1177832]
[1759436174390,1.20771842,120650.0,120640.0,0.43645212]
[1759436174693,0.1046001,120630.0,120620.0,0.02228]
[1759436174894,1.54710902,120630.0,120610.0,0.09551266]
[1759436175098,1.54710902,120630.0,120610.0,0.43646158]
[1759436175099,0.42327592,120620.0,120610.0,0.43646158]
[1759436175304,0.78407592,120620.0,120610.0,0.43646158]
[1759436175696,0.38256,120620.0,120610.0,0.43646158]
[1759436175897,0.70122892,120620.0,120610.0,0.43646158]
[1759436176496,0.78407592,120620.0,120610.0,0.43646158]
[1759436176887,0.70122892,120620.0,120610.0,0.43646158]
[1759436177293,1.13396,120620.0,120610.0,0.43646158]
[1759436177496,0.77316,120620.0,120610.0,0.43646158]
[1759436177695,0.02176,120620.0,120610.0,0.43646158]
[1759436177886,0.77316,120620.0,120610.0,0.43646158]
[1759436178085,0.80298893,120640.0,120630.0,0.1177901]
[1759436178289,1.89547536,120640.0,120630.0,0.03495]
[1759436178489,0.82544644,120640.0,120630.0,0.43645902]
[1759436178687,1.57680644,120640.0,120630.0,0.43645902]
[1759436180709,1.57684644,120640.0,120630.0,0.43645902]
[1759436181293,1.25817752,120640.0,120630.0,0.43645902]
[1759436181600,0.06313952,120640.0,120630.0,0.75512794]
[1759436181901,0.06313952,120640.0,120630.0,0.43645902]
[1759436182105,0.81469952,120640.0,120630.0,0.83645902]
[1759436182301,0.81469952,120640.0,120630.0,1.15512794]
[1759436182502,0.81469952,120640.0,120630.0,0.83645902]
[1759436184009,0.79224201,120640.0,120630.0,0.83645902]
[1759436184302,0.12351521,120640.0,120630.0,0.83645902]
[1759436184603,0.87507521,120640.0,120630.0,0.83645902]
[1759436184805,1.19374413,120640.0,120630.0,0.83645902]
[1759436185010,1.11091093,120640.0,120630.0,0.83645902]
[1759436185702,0.79224201,120640.0,120630.0,0.83645902]
[1759436185909,0.77328,120640.0,120630.0,1.15512794]
[1759436186106,0.77328,120640.0,120630.0,0.83645902]
[1759436187810,0.77328,120640.0,120630.0,1.19725902]
[1759436188704,0.02176,120640.0,120630.0,1.19725902]
[1759436188907,0.77316,120640.0,120630.0,1.19725902]
[1759436189711,1.09182892,120640.0,120630.0,0.79725902]
[1759436190712,1.45262892,120640.0,120630.0,0.43645902]
[1759436191707,1.13396,120640.0,120630.0,0.43645902]
[1759436191910,1.45262892,120640.0,120630.0,0.43645902]
[1759436193115,1.09182892,120640.0,120630.0,0.43645902]
[1759436193612,1.17466212,120640.0,120630.0,0.43645902]
[1759436194009,0.8559932,120640.0,120630.0,0.43645902]
[1759436194308,1.17466212,120640.0,120630.0,0.43645902]
[1759436195010,1.09182892,120640.0,120630.0,0.43645902]
[1759436196809,1.07836237,120640.0,120630.0,0.43645902]
[1759436197612,0.75969345,120640.0,120630.0,0.43645902]
[1759436197811,1.07836237,120640.0,120630.0,0.43645902]
[1759436202118,0.75969345,120640.0,120630.0,0.43645902]
[1759436202314,1.07836237,120640.0,120630.0,0.43645902]
[1759436202719,1.07836237,120640.0,120630.0,0.1177901]
[1759436202919,1.07836237,120640.0,120630.0,0.43645902]
[1759436204015,1.07836237,120640.0,120630.0,0.51077563]
[1759436204420,1.07836237,120640.0,120630.0,0.43645902]
[1759436212932,1.07836237,120640.0,120630.0,0.51077563]
[1759436214836,1.07836237,120640.0,120630.0,0.43645902]
[1759436217640,1.07836237,120640.0,120630.0,0.1177901]
[1759436217841,1.07836237,120640.0,120630.0,0.43645902]
[1759436218140,1.06489582,120640.0,120630.0,0.43645902]
[1759436218340,1.06489582,120640.0,120630.0,0.51077563]
[1759436220131,1.06489582,120640.0,120630.0,0.19210671]
[1759436220341,1.06489582,120640.0,120630.0,0.51077563]
[1759436220534,1.06489582,120640.0,120630.0,0.43645902]
[1759436221140,0.0828401,120630.0,120620.0,0.43749322]
[1759436221341,0.76230902,120630.0,120620.0,0.43749322]
[1759436222838,0.4436401,120630.0,120620.0,0.43749322]
[1759436223038,1.43074892,120630.0,120620.0,0.43749322]
[1759436223233,0.3608,120630.0,120620.0,0.43749322]
[1759436223439,0.67946892,120630.0,120620.0,0.75616214]
[1759436223736,0.01933365,120640.0,120630.0,0.1197501]
[1759436224047,0.77061365,120640.0,120630.0,0.43841902]
[1759436224845,0.77061365,120640.0,120630.0,0.51273563]
[1759436225450,0.77061365,120640.0,120630.0,0.43841902]
[1759436225841,1.08928257,120640.0,120630.0,0.43841902]
[1759436226041,1.17211577,120640.0,120630.0,0.43841902]
[1759436226244,1.53291577,120640.0,120630.0,0.43841902]
[1759436228749,1.13141365,120640.0,120630.0,0.43841902]
[1759436229852,1.21424685,120640.0,120630.0,0.43841902]
[1759436230148,0.38013365,120640.0,120630.0,0.43841902]
[1759436230342,1.13141365,120640.0,120630.0,0.43841768]
[1759436230544,0.38013365,120640.0,120630.0,0.43841768]
[1759436230940,1.13141365,120640.0,120630.0,0.43841768]
[1759436233349,0.75128,120640.0,120630.0,1.11788526]
[1759436233549,1.11217274,120650.0,120640.0,0.1197432]
[1759436233748,1.11217274,120650.0,120640.0,0.43841078]
[1759436234747,1.11217274,120650.0,120640.0,0.50461771]
[1759436235441,0.75137274,120650.0,120640.0,0.50461771]
[1759436235852,9.274e-05,120650.0,120640.0,0.50461771]
[1759436236052,0.75137274,120650.0,120640.0,0.50461771]
[1759436236253,0.75137274,120650.0,120640.0,0.51278702]
[1759436236952,9.274e-05,120650.0,120640.0,0.51278702]
[1759436237151,0.75137274,120650.0,120640.0,0.51278702]
[1759436237948,0.75137274,120650.0,120640.0,0.19411944]
[1759436238152,0.75137274,120650.0,120640.0,0.51278702]
[1759436238747,0.83419914,120650.0,120640.0,0.51278702]
[1759436238946,0.83419914,120650.0,120640.0,0.19411944]
[1759436239149,0.83419914,120650.0,120640.0,0.51278702]
[1759436239354,1.19499914,120650.0,120640.0,0.51278702]
[1759436241558,1.19499914,120650.0,120640.0,0.50461771]
[1759436242756,1.19499914,120650.0,120640.0,0.51281603]
[1759436253057,1.19499914,120650.0,120640.0,0.50461771]
[1759436253957,1.19499914,120650.0,120640.0,0.51270863]
[1759436254466,9.274e-05,120650.0,120640.0,0.51270863]
[1759436254661,0.75125274,120650.0,120640.0,0.51270863]
[1759436256960,9.274e-05,120650.0,120640.0,0.51270863]
[1759436258266,9.274e-05,120650.0,120640.0,1.26382863]
[1759436258467,0.08291914,120650.0,120640.0,1.26382863]
[1759436259066,9.274e-05,120650.0,120640.0,1.26382863]
[1759436260261,9.274e-05,120650.0,120640.0,1.26378863]
[1759436260468,9.274e-05,120650.0,120640.0,0.51270863]
[1759436260667,0.01342662,120660.0,120650.0,0.0958464]
[1759436260859,0.01342662,120660.0,120650.0,0.79777398]
[1759436261062,0.01342662,120660.0,120650.0,1.54885398]
[1759436261464,1.31177733,120680.0,120670.0,0.1182927]
[1759436261664,1.39705573,120680.0,120670.0,0.43696028]
[1759436261966,0.95344993,120680.0,120670.0,0.43696028]
[1759436263168,0.20236993,120680.0,120670.0,0.43696028]
[1759436264569,1.21376177,120690.0,120680.0,0.1182858]
[1759436264870,1.23552545,120690.0,120680.0,0.43695338]
[1759436265069,1.13095827,120690.0,120680.0,0.43695338]
[1759436265264,0.77015827,120690.0,120680.0,0.44535062]
[1759436265572,0.01907827,120690.0,120680.0,0.44535062]
[1759436267471,0.01907827,120690.0,120680.0,1.19635062]
[1759436267672,0.01907827,120690.0,120680.0,1.19631062]
[1759436268271,0.3608,120700.0,120690.0,0.1182789]
[1759436268470,0.3608,120700.0,120690.0,0.43694648]
[1759436269473,1.43042758,120710.0,120700.0,0.0958121]
[1759436269774,1.43042758,120710.0,120700.0,0.43693968]
[1759436269775,0.02171754,120710.0,120700.0,0.43693968]
[1759436270071,1.53242787,120720.0,120710.0,0.1182652]
[1759436270262,1.55414102,120720.0,120710.0,0.1182652]
[1759436270971,1.53488283,120720.0,120710.0,0.1182652]
[1759436272767,1.61621525,120720.0,120710.0,0.1182652]
[1759436272973,1.61621525,120720.0,120710.0,0.43693278]
[1759436273170,1.13343315,120720.0,120710.0,0.43693278]
[1759436273676,1.13343315,120720.0,120710.0,0.44501541]
[1759436273677,0.02171315,120720.0,120710.0,0.44501541]
[1759436275177,0.10449155,120720.0,120710.0,0.43693278]
[1759436275372,0.10449155,120720.0,120710.0,0.1182652]
[1759436275567,0.10449155,120720.0,120710.0,0.43693278]
[1759436275772,0.02171315,120720.0,120710.0,0.43693278]
[1759436278775,0.10449155,120720.0,120710.0,0.43693278]
[1759436279876,0.42315913,120720.0,120710.0,0.03548]
[1759436280176,0.0827852,120710.0,120700.0,0.01302]
[1759436280375,1.21597835,120710.0,120700.0,0.03452]
[1759436280583,1.53464593,120710.0,120700.0,0.03452]
[1759436280784,1.53464593,120710.0,120700.0,0.1173121]
[1759436281085,1.21597835,120710.0,120700.0,0.1173121]
[1759436281581,1.53464593,120710.0,120700.0,0.1173121]
[1759436281782,1.21597835,120710.0,120700.0,0.1173121]
[1759436281983,1.53464593,120710.0,120700.0,0.1173121]
[1759436282679,0.46529835,120710.0,120700.0,0.43597968]
[1759436282886,0.85513835,120710.0,120700.0,0.43597968]
[1759436283589,0.02171315,120710.0,120700.0,0.79677968]
[1759436283978,0.02171315,120710.0,120700.0,1.19677968]
[1759436285484,0.05185561,120730.0,120720.0,0.1175684]
[1759436285683,0.04383526,120730.0,120720.0,0.75490356]
[1759436285881,0.04383526,120730.0,120720.0,0.43623598]
[1759436286188,0.04383526,120730.0,120720.0,1.51570356]
[1759436286381,0.02167208,120730.0,120720.0,1.51570356]
[1759436286682,0.02216318,120740.0,120730.0,0.1175615]
[1759436286881,0.02216318,120740.0,120730.0,0.43622908]
[1759436287384,0.10492778,120740.0,120730.0,0.50383018]
[1759436287680,0.48734689,120740.0,120730.0,0.51191048]
[1759436288089,0.44521447,120740.0,120730.0,0.1851626]
[1759436288290,0.48734689,120740.0,120730.0,0.1851626]
[1759436288988,0.40458229,120740.0,120730.0,0.1851626]
[1759436289183,0.40458229,120740.0,120730.0,0.50383018]
[1759436290278,0.40458229,120740.0,120730.0,0.50331842]
[1759436290684,0.40458229,120740.0,120730.0,0.82147424]
[1759436290882,0.04378229,120740.0,120730.0,1.18227424]
[1759436291181,0.02216318,120740.0,120730.0,1.93279424]
[1759436291588,0.02216318,120740.0,120730.0,1.9410927]
[1759436291778,0.02216318,120740.0,120730.0,1.62293688]
[1759436292086,1.51223402,120750.0,120740.0,0.1175546]
[1759436292289,1.51223402,120750.0,120740.0,0.43571042]
[1759436292681,1.51223402,120750.0,120740.0,0.75386624]
[1759436292878,1.42947582,120750.0,120740.0,0.75386624]
[1759436293686,1.11132,120750.0,120740.0,0.75386624]
[1759436294894,1.1940778,120750.0,120740.0,0.75386624]
[1759436296689,1.51223362,120750.0,120740.0,0.1175546]
[1759436296891,1.51223362,120750.0,120740.0,0.75386624]
[1759436297589,1.51223362,120750.0,120740.0,0.1175546]
[1759436297790,1.51223362,120750.0,120740.0,0.43571042]
[1759436298694,1.51223362,120750.0,120740.0,0.75386624]
[1759436299293,1.1940778,120750.0,120740.0,0.75386624]
[1759436299491,1.51223362,120750.0,120740.0,0.75386624]
[1759436300095,1.51223362,120750.0,120740.0,0.43571042]
[1759436300701,1.1940778,120750.0,120740.0,0.43571042]
[1759436301001,1.51223362,120750.0,120740.0,0.43571042]
[1759436304600,1.1940778,120750.0,120740.0,0.43571042]
[1759436304799,1.51223362,120750.0,120740.0,0.43571042]
[1759436305497,2.23038944,120750.0,120740.0,0.01329]
[1759436305698,2.23038944,120750.0,120730.0,0.50511842]
[1759436306001,0.67895582,120740.0,120730.0,0.50511842]
[1759436307203,0.67895582,120740.0,120730.0,0.51320103]
[1759436307503,1.11116,120740.0,120730.0,0.51320103]
[1759436309003,1.1939246,120740.0,120730.0,0.51320103]
[1759436310004,1.11116,120740.0,120730.0,0.51320103]
[1759436310204,0.75036,120740.0,120730.0,0.51320103]
[1759436310502,1.06851582,120740.0,120730.0,0.51320103]
[1759436312307,1.06851582,120740.0,120730.0,0.50511842]
[1759436312502,1.06851582,120740.0,120730.0,0.1869626]
[1759436312695,1.06851582,120740.0,120730.0,0.50511842]
[1759436313005,0.31815582,120740.0,120730.0,0.50511842]
[1759436313204,1.06847582,120740.0,120730.0,0.50511842]
[1759436313602,1.42927582,120740.0,120730.0,0.50511842]
[1759436313802,1.11112,120740.0,120730.0,0.50511842]
[1759436314006,1.42927582,120740.0,120730.0,0.50511842]
[1759436315407,1.06847582,120740.0,120730.0,0.50511842]
[1759436316511,1.06847582,120740.0,120730.0,0.51358492]
[1759436316705,1.06847582,120740.0,120730.0,0.1869626]
[1759436316905,1.06847582,120740.0,120730.0,0.50511842]
[1759436317513,1.06847582,120740.0,120730.0,0.51324778]
[1759436317707,0.75032,120740.0,120730.0,0.19509196]
[1759436318010,1.06847582,120740.0,120730.0,0.51324778]
[1759436320113,0.75032,120740.0,120730.0,0.51324778]
[1759436320309,0.76171362,120750.0,120730.0,0.51324778]
[1759436320613,0.78324526,120750.0,120740.0,0.35415582]
[1759436320809,0.02153164,120750.0,120740.0,1.82351206]
[1759436321316,1.11108,120760.0,120750.0,0.1187578]
[1759436321516,1.13260937,120760.0,120750.0,0.43691362]
[1759436321919,0.77180937,120760.0,120750.0,0.43691362]
[1759436322317,0.02152937,120760.0,120750.0,0.43691362]
[1759436322517,0.77180937,120760.0,120750.0,0.43691362]
[1759436323807,0.02152937,120760.0,120750.0,0.43691362]
[1759436324109,0.77180937,120760.0,120750.0,0.43691362]
[1759436325018,0.02152937,120760.0,120750.0,0.43691362]
[1759436325216,0.02152937,120760.0,120750.0,0.75506944]
[1759436326317,1.15247448,120780.0,120770.0,0.1187441]
[1759436326621,1.15167196,120780.0,120770.0,0.43689992]
[1759436327315,1.15163196,120780.0,120770.0,0.43689992]
[1759436327616,1.46978778,120780.0,120770.0,0.43689992]
[1759436328521,1.15163196,120780.0,120770.0,0.43689992]
[1759436328819,1.46978778,120780.0,120770.0,0.43689992]
[1759436329117,1.15163196,120780.0,120770.0,0.43689992]
[1759436329318,1.46978778,120780.0,120770.0,0.43689992]
[1759436329515,1.15163196,120780.0,120770.0,0.0954441]
[1759436329720,1.7879436,120780.0,120770.0,0.1187441]
[1759436330023,1.7879436,120780.0,120770.0,0.43689992]
[1759436330324,1.81010678,120780.0,120770.0,0.43689992]
[1759436330918,1.17379514,120780.0,120770.0,0.43689992]
[1759436331121,1.81010678,120780.0,120770.0,0.43689992]
[1759436331329,1.81010678,120780.0,120770.0,0.1187441]
[1759436332422,1.7879436,120780.0,120770.0,0.1187441]
[1759436332619,1.7879436,120780.0,120760.0,0.1187459]
[1759436332830,0.67895582,120770.0,120760.0,0.41360172]
[1759436333124,0.70031648,120770.0,120760.0,0.43690172]
[1759436334723,0.70031648,120770.0,120760.0,0.1187459]
[1759436334923,1.10031648,120770.0,120760.0,0.0954459]
[1759436335723,1.10031648,120770.0,120760.0,0.1187459]
[1759436337126,1.10031648,120770.0,120760.0,0.43690172]
[1759436337723,0.78216066,120770.0,120760.0,0.43690172]
[1759436337924,1.10031648,120770.0,120760.0,0.43690172]
[1759436339623,1.85047648,120770.0,120760.0,0.43690172]
[1759436340824,0.78216066,120770.0,120760.0,0.43690172]
[1759436341024,1.85047648,120770.0,120760.0,0.43690172]
[1759436341225,1.10031648,120770.0,120760.0,0.43690172]
[1759436341425,1.85047648,120770.0,120760.0,0.43690172]
[1759436341923,1.85047648,120770.0,120760.0,0.75505754]
[1759436342225,0.78216066,120770.0,120760.0,0.75505754]
[1759436342430,0.02136066,120770.0,120760.0,1.47321336]
[1759436342620,0.3800313,120780.0,120770.0,0.1174141]
[1759436342924,1.15139153,120780.0,120770.0,0.43556992]
[1759436344125,1.15139153,120780.0,120770.0,0.44395088]
[1759436344322,1.1301913,120780.0,120770.0,0.44395088]
[1759436345324,0.3608,120790.0,120780.0,0.1174072]
[1759436345520,1.1321323,120790.0,120780.0,0.75371884]
[1759436345828,0.3608,120800.0,120790.0,0.1174004]
[1759436346021,1.13217298,120800.0,120790.0,0.75371204]
[1759436346222,0.38197298,120800.0,120790.0,0.75371204]
[1759436346426,0.02117298,120800.0,120790.0,1.15371204]
[1759436346727,1.11104,120810.0,120800.0,0.1173935]
[1759436346928,1.13214657,120810.0,120800.0,0.75370514]
[1759436348122,1.11104,120810.0,120800.0,0.81320859]
[1759436348318,1.11104,120810.0,120800.0,0.75370514]
[1759436348621,1.11128,120810.0,120800.0,0.75370514]
[1759436349520,1.1939972,120810.0,120800.0,0.1173935]
[1759436349725,1.1939972,120810.0,120800.0,0.75370514]
[1759436350724,1.11128,120810.0,120800.0,0.75370514]
[1759436352234,1.11128,120810.0,120800.0,0.43515137]
[1759436352430,0.3608,120810.0,120800.0,0.83515137]
[1759436352635,1.1936738,120820.0,120810.0,0.1173867]
[1759436355036,1.1936738,120820.0,120810.0,0.43514457]
[1759436356228,1.1936738,120820.0,120810.0,0.1173867]
[1759436357038,1.51143167,120820.0,120810.0,0.03467]
[1759436357337,1.51143167,120820.0,120810.0,0.18445326]
[1759436363237,1.51143167,120820.0,120810.0,0.1173867]
[1759436363438,0.0827167,120810.0,120800.0,0.1173909]
[1759436363741,0.76127457,120810.0,120800.0,0.1173909]
[1759436364740,0.4435167,120810.0,120800.0,0.1173909]
[1759436365033,0.4435167,120810.0,120800.0,0.43514877]
[1759436365236,1.1937167,120810.0,120800.0,0.43514877]
[1759436368035,1.51147457,120810.0,120790.0,0.1183758]
[1759436368238,1.111,120810.0,120790.0,0.1183758]
[1759436368434,0.31775787,120800.0,120790.0,0.1183758]
[1759436369333,0.67855787,120800.0,120780.0,0.09515345]
[1759436369637,1.42899787,120790.0,120780.0,0.1183872]
[1759436371546,1.42899787,120790.0,120770.0,0.20169141]
[1759436371843,0.3608,120780.0,120770.0,0.26119486]
[1759436372344,0.3608,120780.0,120770.0,0.20169141]
[1759436374233,0.3608,120780.0,120770.0,0.26119486]
[1759436374439,0.3608,120780.0,120770.0,0.20169141]
[1759436375139,0.76129507,120780.0,120770.0,0.01338]
[1759436375548,0.76129507,120780.0,120760.0,0.09449345]
[1759436375840,1.42907787,120770.0,120760.0,0.07222345]
[1759436376048,1.42907787,120770.0,120760.0,0.03499]
[1759436377338,0.67855787,120770.0,120760.0,0.17724435]
[1759436377538,1.42931787,120770.0,120760.0,0.17724435]
[1759436378342,1.42931787,120770.0,120760.0,0.1177409]
[1759436378946,1.42931787,120770.0,120760.0,0.17724435]
[1759436379543,0.3608,120770.0,120760.0,0.17724435]
[1759436379845,1.11148,120770.0,120760.0,0.49500222]
[1759436381351,0.3608,120770.0,120760.0,0.49500222]
[1759436381551,1.11148,120770.0,120760.0,0.49500222]
[1759436382748,1.11144,120770.0,120760.0,0.49500222]
[1759436383842,1.11144,120770.0,120760.0,0.41225132]
[1759436384042,1.11144,120770.0,120760.0,0.49500222]
[1759436384350,1.11144,120770.0,120760.0,0.17724435]
[1759436385247,0.3608,120770.0,120760.0,0.17724435]
[1759436385449,1.11136,120770.0,120760.0,0.49500222]
[1759436386445,1.11136,120770.0,120760.0,0.43549877]
[1759436388753,1.1941041,120770.0,120760.0,0.43549877]
[1759436389049,1.1941041,120770.0,120760.0,0.1177409]
[1759436389248,1.1941041,120770.0,120760.0,0.43549877]
[1759436389658,1.1941041,120770.0,120760.0,0.1177409]
[1759436389844,1.1941041,120770.0,120760.0,0.43549877]
[1759436391949,0.4435441,120770.0,120760.0,0.43549877]
[1759436392254,0.8330641,120770.0,120760.0,0.43549877]
[1759436394554,0.0827441,120770.0,120760.0,0.43549877]
[1759436394753,0.4435372,120780.0,120770.0,0.1177341]
[1759436395055,1.1937372,120780.0,120770.0,0.43549197]
[1759436395956,1.1937372,120780.0,120770.0,0.1177341]
[1759436396252,0.3608,120780.0,120770.0,0.83549197]
[1759436396454,0.4628016,120790.0,120780.0,0.1178372]
[1759436396654,1.2132016,120790.0,120780.0,0.43559507]
[1759436399457,1.193935,120790.0,120780.0,0.43559507]
[1759436400152,0.443535,120790.0,120780.0,0.43559507]
[1759436400354,0.3608,120800.0,120790.0,0.1178304]
[1759436400546,1.13220352,120800.0,120790.0,0.43558827]
[1759436401258,1.13220352,120800.0,120790.0,0.1178304]
[1759436402053,1.11104,120800.0,120790.0,0.1178304]
[1759436402559,1.42879787,120800.0,120790.0,0.0351]
[1759436402760,1.42879787,120800.0,120780.0,0.1178372]
[1759436402960,0.67855787,120790.0,120770.0,0.15496305]
[1759436403159,1.42883787,120780.0,120770.0,0.0827396]
[1759436403758,1.42883787,120780.0,120770.0,0.1178396]
[1759436404966,1.11156,120780.0,120770.0,0.43559747]
[1759436405157,1.11156,120780.0,120770.0,0.1178396]
[1759436406862,1.42931787,120780.0,120770.0,0.1178396]
[1759436407562,0.67855787,120780.0,120770.0,0.1178396]
[1759436407759,0.3608,120780.0,120770.0,0.43559747]
[1759436407959,1.1114,120780.0,120770.0,0.43559747]
[1759436408159,0.7506,120780.0,120770.0,0.43559747]
[1759436408463,0.69776425,120790.0,120780.0,0.0351]
[1759436408663,1.44860425,120790.0,120780.0,0.0351]
[1759436409863,1.44860425,120790.0,120780.0,0.1178372]
[1759436412465,1.4487778,120790.0,120780.0,0.43576862]
[1759436412666,0.6979378,120790.0,120780.0,0.43576862]
[1759436412867,1.4486178,120790.0,120780.0,0.43576862]
[1759436413070,1.5313482,120790.0,120780.0,0.43576862]
[1759436413368,1.5312682,120790.0,120780.0,0.43576862]
[1759436413668,0.7806682,120790.0,120780.0,0.43576862]
[1759436413866,0.4435304,120790.0,120780.0,0.1178372]
[1759436414062,1.1940904,120790.0,120780.0,0.75370004]
[1759436414564,0.4435304,120790.0,120780.0,0.75370004]
[1759436414867,0.3608,120790.0,120780.0,1.15370004]
[1759436415055,1.11148,120790.0,120780.0,1.15370004]
[1759436415959,1.11148,120790.0,120780.0,0.43576862]
[1759436415960,1.42941142,120790.0,120780.0,0.43576862]
[1759436417369,1.42941142,120790.0,120780.0,0.1178372]
[1759436417568,1.42941142,120790.0,120780.0,0.43576862]
[1759436421171,1.11148,120790.0,120780.0,0.43576862]
[1759436421374,1.42941142,120790.0,120780.0,0.43576862]
[1759436423474,1.11148,120790.0,120780.0,0.43576862]
[1759436423773,1.42941142,120790.0,120780.0,0.43576862]
[1759436424866,1.11148,120790.0,120780.0,0.43576862]
[1759436425067,1.42941142,120790.0,120780.0,0.43576862]
[1759436425469,1.42941142,120790.0,120780.0,0.1178372]
[1759436425765,1.42941142,120790.0,120780.0,0.43576862]
[1759436426272,1.51214182,120790.0,120780.0,0.43576862]